bitfinex-derivatives/quotes_ETHF0:USTF0_20260306
["timestamp","ask_amount","ask_price","bid_price","bid_amount"]
[1772789894877,1.46739902,2050.6,2050.0,1.42838496]
[1772789895176,1.46097094,2050.6,2050.0,1.42838496]
[1772789895377,1.46097094,2050.6,2050.0,0.00624617]
[1772789896578,1.46097094,2050.6,2050.0,1.42838496]
[1772789897776,1.46097094,2050.6,2050.0,0.00624617]
[1772789897975,1.46097094,2050.6,2050.0,1.42838496]
[1772789898375,0.24382,2050.6,2050.0,1.42838496]
[1772789898569,0.00359112,2051.0,2050.0,1.42838496]
[1772789899070,1.45352936,2051.4,2050.1,1.42213879]
[1772789899970,1.45902754,2051.4,2050.1,1.42213879]
[1772789900681,1.45902754,2051.4,2050.3,1.42213879]
[1772789900871,1.21530754,2051.4,2050.3,1.42213879]
[1772789901077,1.45954368,2051.0,2050.3,1.42213879]
[1772789901681,0.24382,2050.6,2050.1,1.42213879]
[1772789901881,1.46579923,2050.6,2050.1,1.42213879]
[1772789902379,0.24382,2050.6,2050.1,1.42213879]
[1772789902776,1.46251693,2050.6,2050.1,1.42213879]
[1772789902972,0.24386,2050.2,2049.6,1.42213879]
[1772789903279,1.46250693,2050.7,2049.6,1.42213879]
[1772789904076,1.46250693,2050.7,2049.6,1.42672565]
[1772789905182,0.24381,2050.7,2049.6,1.42672565]
[1772789906276,1.44056054,2050.7,2049.6,1.42672565]
[1772789906678,1.19349732,2051.0,2049.6,1.42672565]
[1772789908585,0.24376,2051.1,2049.8,1.42213879]
[1772789909680,1.42819347,2051.1,2049.8,1.42213879]
[1772789909883,0.2438,2050.8,2049.8,1.42213879]
[1772789910083,1.18443347,2050.7,2050.0,1.42213879]
[1772789910287,0.2438,2050.8,2050.0,1.42213879]
[1772789911387,1.18120249,2051.1,2050.0,1.42213879]
[1772789911684,1.42598485,2051.2,2050.0,1.42213879]
[1772789911884,1.42598485,2051.2,2050.2,1.54031557]
[1772789913085,0.24374,2051.2,2050.2,1.54031557]
[1772789913586,0.00549818,2051.4,2050.2,1.54031557]
[1772789913987,1.19157985,2051.4,2050.2,1.54031557]
[1772789914381,1.19157985,2051.4,2050.4,1.54031557]
[1772789915183,0.00549818,2051.4,2050.4,1.54031557]
[1772789915583,1.18734181,2051.4,2050.4,1.54031557]
[1772789915782,1.18734181,2051.4,2050.0,0.24388]
[1772789915783,1.18184363,2051.2,2050.6,1.54031557]
[1772789915989,1.18184363,2051.0,2050.1,1.54031557]
[1772789916878,0.00549818,2051.4,2050.1,1.54031557]
[1772789916879,1.17862265,2051.2,2050.1,1.54031557]
[1772789917084,1.18412083,2051.4,2050.1,1.54031557]
[1772789919389,0.00549818,2051.4,2050.1,1.54031557]
[1772789919792,0.00549818,2051.4,2050.2,1.54031557]
[1772789920088,1.16532121,2051.9,2050.3,0.24385]
[1772789920287,1.17081939,2051.7,2050.5,1.54031557]
[1772789920691,1.17081939,2051.7,2050.7,1.54031557]
[1772789921084,1.17706274,2051.7,2050.7,1.54031557]
[1772789921285,0.24369,2051.6,2050.7,1.54031557]
[1772789921485,1.41588538,2051.6,2050.7,1.54031557]
[1772789922195,0.00624335,2051.7,2050.7,1.54031557]
[1772789923096,1.50358317,2051.7,2050.7,1.54031557]
[1772789923294,1.50358317,2051.7,2050.8,1.54031557]
[1772789926798,0.24373,2051.4,2050.8,1.54031557]
[1772789927096,1.22996034,2051.3,2050.8,1.54031557]
[1772789927797,1.22983264,2051.1,2050.5,1.54031557]
[1772789927997,0.24374,2051.2,2050.5,1.54031557]
[1772789928199,1.47357264,2051.2,2050.5,1.54031557]
[1772789928595,1.23672726,2051.7,2050.5,1.54031557]
[1772789928799,1.47418391,2051.6,2050.5,1.54031557]
[1772789929300,0.24374,2051.3,2050.5,1.54031557]
[1772789929496,1.23112345,2051.2,2050.5,1.54031557]
[1772789931796,1.45944725,2051.7,2050.5,1.54031557]
[1772789933500,0.24373,2051.4,2050.5,1.54031557]
[1772789933702,1.21048367,2051.3,2050.6,1.54031557]
[1772789934494,0.24373,2051.4,2050.6,1.54031557]
[1772789934896,0.00624335,2051.7,2050.6,1.54031557]
[1772789935494,1.21998957,2051.7,2050.6,1.54031557]
[1772789935701,0.24369,2051.6,2050.6,1.54031557]
[1772789935901,1.45743622,2051.6,2050.6,1.54031557]
[1772789936201,1.21374622,2052.2,2050.6,1.54031557]
[1772789936412,1.21374622,2052.0,2050.9,1.54031557]
[1772789937305,1.21903991,2052.0,2050.9,1.54031557]
[1772789937507,0.24367,2051.9,2050.9,1.54031557]
[1772789938208,1.46370423,2051.9,2050.9,1.54031557]
[1772789939804,0.24367,2051.9,2050.9,1.54031557]
[1772789940208,3.94808904,2052.8,2050.9,1.78409557]
[1772789940402,1.47100891,2052.6,2051.8,1.54031557]
[1772789941011,0.24358,2052.6,2051.8,1.54031557]
[1772789941313,1.71459913,2052.4,2051.8,1.54538425]
[1772789942216,1.71917292,2052.4,2051.8,1.54538425]
[1772789942710,1.71987635,2052.4,2051.8,1.42718118]
[1772789942915,1.71987635,2052.4,2051.8,0.00506868]
[1772789944114,1.48260562,2051.9,2051.3,17.7001125]
[1772789944310,1.48260562,2051.9,2051.4,1.4221125]
[1772789945014,1.48260562,2051.9,2051.4,1.42701818]
[1772789946413,0.24365,2052.0,2051.4,1.42701818]
[1772789946712,0.2436,2052.5,2051.4,1.42701818]
[1772789946916,1.72354023,2052.5,2051.4,1.42701818]
[1772789948818,0.2436,2052.5,2051.4,1.42701818]
[1772789950016,0.00396804,2052.6,2051.4,1.42701818]
[1772789950312,1.70372096,2052.6,2051.4,1.42701818]
[1772789950619,0.00396804,2052.6,2051.7,1.4221125]
[1772789951416,1.70094031,2052.5,2051.7,1.4221125]
[1772789952022,1.70669139,2052.1,2051.7,1.4221125]
[1772789952221,0.24364,2052.1,2051.7,1.4221125]
[1772789952725,1.70721129,2052.1,2051.4,0.00490568]
[1772789952920,1.70721129,2052.1,2051.5,1.4221125]
[1772789954426,0.24364,2052.1,2051.5,1.4221125]
[1772789955227,1.75917344,2052.1,2051.5,1.4221125]
[1772789955924,1.75917344,2052.1,2051.4,0.00490568]
[1772789956226,1.75917344,2052.1,2051.4,1.42701818]
[1772789957827,1.51553344,2051.7,2051.0,1.4221125]
[1772789958024,2.28225947,2052.2,2050.6,1.4221125]
[1772789958025,1.51553344,2051.3,2050.6,1.4221125]
[1772789958425,1.75923344,2051.6,2050.6,1.4221125]
[1772789958825,1.75923344,2051.6,2050.6,1.42683544]
[1772789959528,1.51553344,2051.1,2050.6,1.42683544]
[1772789959731,1.52099145,2051.1,2050.6,1.42683544]
[1772789959921,0.00545801,2051.1,2050.6,1.42683544]
[1772789961430,0.24377,2051.0,2050.6,1.42683544]
[1772789962331,0.00545801,2051.1,2050.6,1.42683544]
[1772789963434,1.75925344,2051.5,2050.6,1.42683544]
[1772789964635,1.76484399,2051.5,2050.6,1.42683544]
[1772789966229,1.51553344,2051.7,2050.6,1.42683544]
[1772789966434,1.75919344,2051.9,2050.6,1.42683544]
[1772789966937,0.24366,2051.9,2051.0,1.4221125]
[1772789967236,1.75914344,2052.3,2051.2,1.4221125]
[1772789967436,1.76475645,2052.3,2051.2,1.4221125]
[1772789967832,1.51553344,2051.8,2050.7,1.4221125]
[1772789968035,1.51553344,2051.8,2050.9,1.4221125]
[1772789968338,1.75919344,2051.9,2050.9,1.4221125]
[1772789971041,0.24366,2051.9,2050.9,1.4221125]
[1772789971339,1.51553344,2052.1,2050.9,1.4221125]
[1772789971743,1.51553344,2052.1,2050.6,0.24853294]
[1772789971744,1.48395818,2050.5,2049.6,10.20466288]
[1772789971934,0.24398,2049.3,2048.2,0.33040843]
[1772789972335,0.19788409,2048.8,2047.5,1.45248363]
[1772789972536,0.24409,2048.3,2047.5,1.45248363]
[1772789972735,0.00506884,2048.3,2047.5,1.45729364]
[1772789972941,0.24156851,2047.9,2047.5,0.00481001]
[1772789973141,0.24156851,2047.9,2047.0,1.43064142]
[1772789973142,0.48571851,2047.8,2047.1,1.43064142]
[1772789973336,0.2367585,2048.2,2047.1,1.43064142]
[1772789974337,0.2367585,2048.2,2047.1,1.4342585]
[1772789975543,0.00506884,2048.3,2047.4,1.51593541]
[1772789976140,0.00506884,2048.3,2047.1,0.00361708]
[1772789976141,0.38000717,2048.1,2047.1,0.00361708]
[1772789976343,0.24415,2047.8,2046.2,1.51593541]
[1772789976644,0.38410044,2048.3,2047.0,1.51588462]
[1772789977444,0.38410044,2048.3,2047.0,1.52067273]
[1772789977937,0.00506884,2048.3,2047.0,1.52067273]
[1772789979033,0.00506884,2048.3,2047.4,1.52324449]
[1772789979237,0.24399,2049.2,2047.8,1.52324449]
[1772789979543,0.24399,2049.2,2047.9,1.52324449]
[1772789979738,0.43913007,2049.8,2048.2,1.48425462]
[1772789980138,0.44357566,2049.8,2048.2,1.48425462]
[1772789980340,0.00444559,2049.8,2048.6,1.48425462]
[1772789980535,0.00444559,2049.8,2048.6,1.48947998]
[1772789980846,0.00444559,2049.8,2048.7,1.484222]
[1772789981943,0.24392,2049.7,2048.7,1.484222]
[1772789982141,0.00444559,2049.8,2048.6,1.46540153]
[1772789982142,0.24402,2048.9,2048.6,1.46540153]
[1772789982337,0.24402,2048.9,2048.6,0.00522536]
[1772789982543,0.24402,2048.9,2048.4,1.46017617]
[1772789982845,0.72802857,2048.9,2047.8,1.4601376]
[1772789983347,0.24402,2048.9,2048.0,1.4601376]
[1772789983547,0.24402,2048.9,2048.0,1.46436285]
[1772789985345,0.48894636,2049.2,2048.0,1.46436285]
[1772789986147,0.72692192,2049.5,2048.3,1.45887735]
[1772789987646,0.00444559,2049.8,2048.3,1.45887735]
[1772789987647,0.49467682,2049.2,2048.3,1.45887735]
[1772789987843,0.24399,2049.1,2048.3,1.45887735]
[1772789988048,0.73866682,2049.1,2048.3,1.45887735]
[1772789988248,0.49467682,2049.0,2048.3,1.45887735]
[1772789989048,0.24399,2049.1,2048.3,1.45887735]
[1772789989850,0.73685042,2049.1,2048.3,1.45887735]
[1772789990248,0.24405,2048.7,2048.1,1.45115152]
[1772789991347,0.73555897,2048.5,2048.0,0.00422525]
[1772789991544,0.24409,2048.3,2048.0,0.00422525]
[1772789991747,0.24776919,2048.3,2047.8,1.45111067]
[1772789991953,0.00367919,2048.3,2047.8,1.45111067]
[1772789992643,0.00367919,2048.3,2047.8,1.45676828]
[1772789992848,0.24411,2048.2,2047.4,1.45115736]
[1772789993150,0.00367919,2048.3,2047.4,1.45115736]
[1772789993854,0.00367919,2048.3,2047.4,1.45601733]
[1772789994149,0.24776919,2048.3,2047.4,1.45601733]
[1772789994754,0.71286174,2047.9,2047.4,0.00485997]
[1772789994957,0.24416,2047.7,2046.9,1.4622916]
[1772789995157,0.46385177,2047.6,2046.9,1.4622916]
[1772789995555,0.24416,2047.7,2046.9,1.4622916]
[1772789996157,0.24416,2047.7,2046.9,1.46587752]
[1772789997855,0.24421,2047.3,2046.9,1.46859044]
[1772789998161,0.24415,2047.8,2046.9,1.46859044]
[1772789998756,0.69673551,2047.8,2046.9,1.46859044]
[1772789999157,0.24415,2047.8,2046.9,1.46859044]
[1772789999560,0.74667451,2047.8,2046.9,1.46859044]
[1772790000165,0.24415,2047.8,2046.9,1.46859044]
[1772790000365,0.5062037,2048.3,2046.9,1.46859044]
[1772790000862,0.24776919,2048.3,2046.9,1.46859044]
[1772790001361,0.24776919,2048.3,2046.9,1.71284044]
[1772790001759,0.24776919,2048.3,2047.1,1.6012039]
[1772790002261,0.24776919,2048.3,2047.3,1.6012039]
[1772790002765,0.24776919,2048.3,2047.5,1.6012039]
[1772790003664,0.24418,2047.5,2047.0,1.6012039]
[1772790004365,0.24418,2047.5,2047.1,1.6012039]
[1772790005366,1.91698348,2047.5,2046.9,1.60478982]
[1772790005957,0.24418,2047.5,2046.9,1.60478982]
[1772790006362,1.67280348,2047.9,2046.9,1.60478982]
[1772790006562,0.24413,2048.0,2046.9,1.60478982]
[1772790007767,1.91699348,2047.5,2046.9,1.60478982]
[1772790007971,1.91699348,2047.5,2046.9,0.00358592]
[1772790009669,0.24424,2047.1,2046.3,1.6012039]
[1772790009866,0.24424,2047.1,2046.4,1.6012039]
[1772790010666,0.24424,2047.1,2046.4,1.6060132]
[1772790010866,1.91698348,2047.6,2046.6,1.6012039]
[1772790011473,0.24422,2047.2,2046.6,1.6012039]
[1772790011870,1.91702348,2047.2,2046.6,1.6012039]
[1772790012075,1.91702348,2047.3,2046.4,1.6060132]
[1772790012977,1.91702348,2047.3,2046.5,1.6012039]
[1772790013172,0.24422,2047.3,2046.5,1.6012039]
[1772790015182,1.67280348,2047.7,2046.5,1.6012039]
[1772790015388,0.00367919,2048.3,2046.5,1.6012039]
[1772790015389,0.24419,2047.4,2046.6,1.6012039]
[1772790015786,0.24414,2047.9,2046.6,1.6012039]
[1772790016484,1.91694348,2047.9,2046.6,1.6012039]
[1772790016690,1.91694348,2047.9,2046.8,1.6012039]
[1772790017289,0.24414,2047.9,2046.8,1.6012039]
[1772790017888,1.91694348,2047.9,2047.0,1.6012039]
[1772790018189,0.24414,2047.9,2047.2,1.6012039]
[1772790018679,1.67280348,2048.2,2047.2,1.6012039]
[1772790018880,0.24411,2048.1,2047.2,1.6012039]
[1772790019085,1.91691348,2048.1,2047.2,1.6012039]
[1772790019283,1.91696348,2047.7,2047.2,1.6012039]
[1772790019586,1.91701348,2047.3,2046.9,16.463]
[1772790019884,1.67280348,2047.5,2046.9,1.6012039]
[1772790020090,1.67280348,2047.7,2046.9,1.6012039]
[1772790020487,0.24417,2047.6,2046.9,1.6012039]
[1772790020787,0.24417,2047.6,2047.0,16.485]
[1772790020987,0.24417,2047.6,2047.0,18.0862039]
[1772790021590,1.91697348,2047.6,2047.0,16.485]
[1772790021789,1.91697348,2047.6,2047.0,16.501]
[1772790021989,1.91697348,2047.6,2047.0,16.503]
[1772790022187,0.24422,2047.2,2046.5,1.6012039]
[1772790022491,1.91702348,2047.2,2046.6,18.1112039]
[1772790022992,1.91702348,2047.2,2046.7,16.519]
[1772790023384,1.91702348,2047.2,2046.7,18.1202039]
[1772790023687,0.24422,2047.2,2046.8,1.6012039]
[1772790023886,1.67280348,2047.4,2046.8,1.6012039]
[1772790024089,1.67280348,2047.6,2047.0,1.6012039]
[1772790024284,0.24417,2047.7,2047.1,1.6012039]
[1772790024691,0.24421,2047.3,2046.5,1.6012039]
[1772790024991,0.24421,2047.3,2046.7,1.6012039]
[1772790025289,0.24421,2047.3,2046.9,1.6012039]
[1772790025493,0.24421,2047.3,2047.1,1.6012039]
[1772790025789,0.24421,2047.3,2047.1,18.1502039]
[1772790025984,0.24421,2047.3,2046.4,0.0048093]
[1772790025985,1.91701348,2047.3,2046.8,16.551]
[1772790026983,0.24421,2047.3,2046.8,1.6012039]
[1772790027187,0.24421,2047.3,2046.9,18.1612039]
[1772790027386,0.24421,2047.3,2046.9,18.1622039]
[1772790027582,1.91701348,2047.3,2047.0,16.564]
[1772790027788,1.91701348,2047.3,2046.4,1.6060132]
[1772790027789,0.24426,2046.9,2046.4,1.6060132]
[1772790028089,1.67280348,2047.3,2046.6,1.6012039]
[1772790028292,0.24419,2047.5,2046.6,1.6012039]
[1772790029087,0.24419,2047.5,2046.8,1.6012039]
[1772790029284,0.24423,2047.2,2046.6,1.6012039]
[1772790029585,0.24423,2047.2,2046.8,1.6012039]
[1772790030288,0.24419,2047.5,2046.8,1.6012039]
[1772790030485,1.67280348,2046.6,2045.6,1.6012039]
[1772790030788,0.24423,2047.2,2045.6,1.6012039]
[1772790030989,1.67280348,2048.1,2046.6,1.6012039]
[1772790031190,1.67280348,2048.1,2046.4,2.28839725]
[1772790031191,1.91685348,2048.6,2047.1,0.24423]
[1772790031389,3.87717277,2049.1,2047.5,1.6012039]
[1772790031390,0.244,2049.0,2047.5,1.6012039]
[1772790031585,0.00408269,2049.0,2047.7,1.73575784]
[1772790031786,1.72105169,2049.2,2047.9,1.7101558]
[1772790031991,0.84210121,2049.3,2047.9,1.7101558]
[1772790032291,0.24396,2049.4,2047.9,1.7101558]
[1772790032488,0.84638152,2049.4,2048.1,1.7101558]
[1772790032694,0.24389,2050.0,2048.5,1.79434512]
[1772790032894,0.24750737,2050.0,2048.7,1.79434512]
[1772790033091,0.24750737,2050.0,2048.9,1.79434512]
[1772790033396,0.24750737,2050.0,2049.1,1.42026512]
[1772790033598,0.81189716,2050.0,2049.3,1.7101558]
[1772790033787,0.24391,2049.8,2049.1,18.25841914]
[1772790033992,0.24391,2049.8,2049.2,1.7101558]
[1772790034191,3.87717277,2050.8,2049.2,1.7101558]
[1772790034396,0.07660283,2050.6,2049.2,1.7101558]
[1772790034600,0.07528459,2050.4,2049.3,16.504]
[1772790034894,0.07528459,2050.2,2049.3,18.35910133]
[1772790035094,0.24385,2050.3,2049.3,18.35910133]
[1772790035290,0.24742667,2050.3,2049.3,18.35910133]
[1772790035489,0.10359719,2050.2,2049.3,18.35910133]
[1772790036196,0.10359719,2050.2,2049.4,1.89391671]
[1772790036592,0.3500853,2050.1,2049.4,1.89391671]
[1772790036896,0.1062153,2049.8,2049.1,1.89822388]
[1772790037294,0.2439,2049.9,2049.1,1.89822388]
[1772790037691,0.2439,2049.9,2049.2,18.43528315]
[1772790037893,0.2439,2049.9,2049.3,1.90028315]
[1772790038093,0.33720169,2049.9,2049.1,1.90454649]
[1772790038294,0.09330169,2049.8,2049.2,18.43928315]
[1772790038494,0.2439,2049.9,2049.2,18.43928315]
[1772790038694,0.33689337,2049.9,2049.2,1.90028315]
[1772790038891,0.2439,2049.9,2049.3,1.90027991]
[1772790039290,0.33691337,2049.7,2049.1,1.90454325]
[1772790039491,0.24392,2049.7,2049.2,1.90027991]
[1772790039695,0.08327038,2050.2,2049.2,1.90027991]
[1772790039895,0.08327038,2050.0,2049.2,18.44927991]
[1772790040491,0.32681974,2049.7,2049.1,0.00426334]
[1772790041501,0.32681974,2049.7,2049.1,1.90922418]
[1772790041700,0.24392,2049.7,2049.1,1.90922418]
[1772790042294,0.31992054,2049.7,2049.1,1.90922418]
[1772790042600,0.31525682,2049.3,2048.6,1.91031525]
[1772790043003,0.24403,2048.8,2048.3,1.91031525]
[1772790043498,0.24918953,2048.8,2048.3,1.91428191]
[1772790044697,0.24918953,2048.8,2048.4,1.91249733]
[1772790045301,0.24918953,2048.8,2048.3,16.24096666]
[1772790045601,0.24918953,2048.8,2048.3,1.91646399]
[1772790045798,0.24918953,2048.8,2048.3,18.17346399]
[1772790045994,0.24918953,2048.8,2048.4,1.92366429]
[1772790046900,0.28656027,2049.3,2048.4,1.92366429]
[1772790047306,0.24402,2048.9,2048.6,1.92365419]
[1772790047801,0.03023371,2050.1,2048.6,1.92365419]
[1772790048195,0.244,2049.1,2048.6,1.92365419]
[1772790048394,0.244,2049.1,2048.7,1.92950215]
[1772790048904,0.24879461,2049.1,2048.7,1.92950215]
[1772790049100,0.24404,2048.7,2048.5,1.92949593]
[1772790049304,0.24404,2048.7,2048.4,1.92949593]
[1772790049703,0.00479461,2049.1,2048.4,1.92949593]
[1772790051103,0.244,2049.0,2048.6,1.85685107]
[1772790052102,0.22518202,2049.0,2048.3,0.00396666]
[1772790052309,0.24405,2048.6,2048.4,1.84785899]
[1772790052710,0.244,2049.0,2048.4,1.84785899]
[1772790053010,0.00479461,2049.1,2048.4,1.84785899]
[1772790053205,0.244,2049.0,2048.4,1.84785899]
[1772790053406,0.244,2049.0,2048.5,1.84786259]
[1772790053606,0.24405,2048.6,2048.3,0.00396666]
[1772790053808,0.24405,2048.6,2048.2,1.7101558]
[1772790054711,0.24411,2048.2,2047.9,1.7101558]
[1772790054908,0.24411,2048.2,2047.9,1.71436942]
[1772790055207,0.73314064,2048.8,2047.9,1.71436942]
[1772790055411,0.24411,2048.2,2047.9,1.71436942]
[1772790056209,0.24411,2048.2,2048.0,1.7101558]
[1772790056907,0.24411,2048.2,2047.9,15.73721362]
[1772790056908,1.72105169,2048.4,2047.1,1.7101558]
[1772790057113,1.72105169,2048.4,2047.6,1.7101558]
[1772790057911,0.24409,2048.3,2047.8,1.7101558]
[1772790058414,1.72105169,2049.0,2048.0,1.7101558]
[1772790058813,1.96511169,2048.6,2048.0,1.7101558]
[1772790059116,1.96511169,2048.6,2048.1,3.42452522]
[1772790059315,1.96511169,2048.6,2048.1,1.7101558]
[1772790060310,0.24406,2048.6,2048.1,1.7101558]
[1772790060510,1.72105169,2049.0,2048.3,1.7101558]
[1772790060709,0.00479461,2049.1,2048.3,1.7101558]
[1772790060910,0.00479461,2049.1,2048.5,1.7101558]
[1772790060911,0.24879461,2049.1,2048.5,1.7101558]
[1772790061316,0.24879461,2049.1,2048.7,1.7101558]
[1772790061513,1.72105169,2049.4,2048.8,1.7101558]
[1772790061814,1.72105169,2049.4,2048.9,2.05213396]
[1772790062010,1.87272457,2049.9,2048.9,2.05213396]
[1772790062214,1.87272457,2049.9,2049.1,2.05213396]
[1772790062407,1.87793905,2049.9,2049.1,2.05751726]
[1772790062613,1.87793905,2049.9,2049.3,2.05213396]
[1772790064408,0.24391,2049.8,2049.5,2.05213396]
[1772790064613,1.87793905,2049.9,2049.5,2.05213396]
[1772790065017,1.87272457,2050.1,2049.5,3.76650338]
[1772790065217,1.87272457,2050.1,2049.6,2.05213396]
[1772790065615,0.24396,2049.4,2049.1,0.0053833]
[1772790065816,0.24396,2049.4,2049.2,1.71436942]
[1772790066014,0.16819295,2049.4,2049.2,1.71436942]
[1772790066413,2.04091752,2049.4,2049.1,0.0053833]
[1772790066614,2.04091752,2049.4,2048.9,2.05213396]
[1772790066814,0.16819295,2049.4,2048.9,2.05213396]
[1772790067517,0.16819295,2049.4,2048.9,2.0569551]
[1772790067817,2.04091752,2049.4,2048.9,2.0569551]
[1772790068214,2.04091752,2049.4,2048.9,0.00482114]
[1772790069613,2.04091752,2049.4,2048.9,2.0569551]
[1772790072812,0.16819295,2049.4,2048.9,2.0569551]
[1772790073014,2.11662457,2049.9,2049.0,2.05213396]
[1772790073223,2.11662457,2049.9,2048.9,2.29205541]
[1772790073224,0.2439,2049.9,2049.2,2.05213396]
[1772790073421,1.87272457,2050.3,2049.2,2.05213396]
[1772790073619,1.87272457,2050.5,2049.2,2.05213396]
[1772790073816,1.87272457,2050.3,2049.4,2.05213396]
[1772790074025,1.87884203,2050.3,2049.4,2.05213396]
[1772790074426,0.00611746,2050.3,2049.4,2.05213396]
[1772790074921,0.24386,2050.2,2049.4,2.05213396]
[1772790075116,2.11658457,2050.2,2049.5,2.05213396]
[1772790075321,0.24386,2050.2,2049.5,2.05213396]
[1772790075924,0.00611746,2050.3,2049.5,2.05213396]
[1772790076227,2.11658457,2050.2,2049.6,2.05213396]
[1772790077117,0.24386,2050.2,2049.6,2.05213396]
[1772790077426,0.24386,2050.2,2049.8,2.05213396]
[1772790077821,2.11658457,2050.2,2049.7,2.05213396]
[1772790078229,1.87272457,2050.8,2049.7,2.05213396]
[1772790079126,0.24381,2050.7,2049.7,2.05213396]
[1772790079327,0.24936683,2050.7,2049.7,2.05213396]
[1772790080230,2.1220914,2050.7,2049.9,2.05213396]
[1772790080423,2.1220914,2050.7,2050.0,18.23213396]
[1772790080726,2.1220914,2050.7,2050.1,2.05213396]
[1772790081724,0.24936683,2050.7,2050.1,18.25013396]
[1772790081929,0.24936683,2050.7,2050.2,2.05213396]
[1772790082529,2.1220914,2050.7,2050.2,18.25913396]
[1772790082828,2.1220914,2050.7,2050.3,2.05213396]
[1772790083130,1.31454389,2050.7,2050.3,2.05213396]
[1772790083824,1.55835389,2050.7,2049.6,2.05213396]
[1772790084031,0.24385,2050.3,2049.8,2.05213396]
[1772790084227,0.24385,2050.3,2050.0,2.05213396]
[1772790084528,0.24385,2050.3,2049.9,18.27413396]
[1772790084730,2.11657457,2050.3,2049.9,2.05213396]
[1772790084932,2.11657457,2050.3,2049.8,18.27813396]
[1772790085123,2.11657457,2050.3,2049.9,2.05213396]
[1772790085328,1.87782408,2050.7,2049.9,2.05213396]
[1772790085622,2.11657457,2050.3,2049.7,2.05213396]
[1772790086929,0.24385,2050.3,2049.7,2.05213396]
[1772790087833,0.24385,2050.3,2049.9,2.05213396]
[1772790088033,0.24385,2050.3,2049.0,2.05213396]
[1772790088230,0.24385,2050.3,2049.2,2.05213396]
[1772790088429,0.24385,2050.3,2049.1,16.076]
[1772790088430,0.2439,2050.0,2049.3,2.05213396]
[1772790088636,0.2439,2050.0,2049.5,2.05213396]
[1772790088835,0.2439,2050.0,2049.6,2.05213396]
[1772790089335,0.24384,2050.5,2049.6,2.05213396]
[1772790092535,0.24384,2050.5,2048.9,41.04882114]
[1772790092536,2.30838917,2050.5,2049.8,2.20927249]
[1772790092735,2.30838917,2050.5,2050.0,2.20927249]
[1772790092936,2.30838917,2050.5,2050.1,2.20927249]
[1772790094133,0.24387,2050.1,2049.8,18.38327249]
[1772790094432,2.06454917,2050.4,2049.9,2.20927249]
[1772790094638,2.30835917,2050.6,2049.9,2.20927249]
[1772790095438,2.30840917,2050.3,2049.9,2.20927249]
[1772790095633,3.93603049,2051.3,2050.3,2.20927249]
[1772790095832,2.06454917,2051.3,2050.3,2.20927249]
[1772790096037,0.24379,2050.8,2050.3,2.20927249]
[1772790096636,0.24949545,2050.8,2050.3,2.20927249]
[1772790096936,2.31404462,2050.8,2050.3,2.20927249]
[1772790097132,0.24949545,2050.8,2050.3,2.20927249]
[1772790097338,2.31404462,2050.8,2050.3,2.20927249]
[1772790097537,0.24949545,2050.8,2050.3,2.20927249]
[1772790098335,2.06454917,2051.2,2050.3,2.20927249]
[1772790099043,0.24379,2050.8,2050.3,2.20927249]
[1772790099236,2.06454917,2051.4,2050.3,2.20927249]
[1772790099436,2.06951268,2051.4,2050.3,2.20927249]
[1772790099833,2.30827917,2051.3,2050.3,2.20927249]
[1772790100338,2.30827917,2051.3,2050.4,2.20927249]
[1772790100539,0.24373,2051.3,2050.4,2.21429566]
[1772790101642,0.24378,2050.9,2050.5,2.20927249]
[1772790103338,0.24383,2050.5,2050.4,0.00502317]
[1772790103545,2.30837917,2050.5,2050.1,2.20927249]
[1772790103741,2.30837917,2050.5,2049.9,2.20927249]
[1772790103945,0.24387,2050.1,2049.9,2.20927249]
[1772790104146,0.24387,2050.1,2049.7,0.55332305]
[1772790104543,0.24387,2050.1,2049.7,0.55815669]
[1772790105251,2.06454917,2050.6,2049.7,0.55815669]
[1772790105449,0.2438,2050.8,2050.0,0.60385223]
[1772790105650,2.10713136,2051.1,2050.0,0.60385223]
[1772790105850,0.2438,2050.8,2050.0,0.60385223]
[1772790106650,2.34317375,2050.8,2050.0,0.60385223]
[1772790107549,0.24384,2050.4,2050.0,0.60385223]
[1772790107955,2.34313908,2050.4,2050.0,0.60385223]
[1772790108250,2.09929908,2050.8,2050.0,0.60385223]
[1772790108441,2.34309908,2050.7,2050.0,0.60385223]
[1772790109844,0.2438,2050.7,2050.0,0.60385223]
[1772790111446,2.08872714,2051.0,2050.0,0.60385223]
[1772790111947,2.33219839,2051.2,2050.0,0.60385223]
[1772790115252,2.33219839,2051.2,2050.2,0.67102376]
[1772790118058,2.08844839,2051.2,2050.2,0.67102376]
[1772790118247,0.00496351,2051.4,2050.4,0.67265749]
[1772790118844,5.96561048,2052.5,2050.6,0.42314611]
[1772790118845,2.33950859,2052.1,2050.6,0.42314611]
[1772790119246,2.22020034,2051.6,2050.6,0.42314611]
[1772790119654,0.24368,2051.7,2050.6,0.42314611]
[1772790119655,2.46305101,2051.7,2050.6,0.42314611]
[1772790119855,2.46742554,2051.7,2050.8,0.42412726]
[1772790120451,2.46742554,2051.7,2050.8,16.52412726]
[1772790120649,2.46742554,2051.7,2050.6,0.44086171]
[1772790120852,2.46742554,2051.7,2050.8,0.44086171]
[1772790121655,2.46742554,2051.7,2050.7,16.1]
[1772790122552,0.24374,2051.3,2050.6,0.37459037]
[1772790122758,2.36736683,2051.2,2050.4,0.38109601]
[1772790123458,2.36736683,2050.8,2049.8,0.3800724]
[1772790123651,2.36736683,2050.6,2049.8,0.3800724]
[1772790124050,2.36736683,2050.6,2049.8,16.027]
[1772790124252,2.36736683,2050.4,2049.8,16.027]
[1772790124655,2.36736683,2050.4,2049.6,0.35489778]
[1772790124856,2.36736683,2050.4,2049.7,0.3586803]
[1772790125562,2.36736683,2050.9,2049.7,0.3586803]
[1772790126359,2.36736683,2051.5,2049.8,0.35393238]
[1772790126562,2.36736683,2051.3,2049.8,0.35393238]
[1772790127856,2.36736683,2051.3,2050.0,0.43136808]
[1772790129656,2.36736683,2051.3,2049.7,10.11989326]
[1772790129657,2.36736683,2051.1,2050.1,16.49582805]
[1772790129860,2.36736683,2051.1,2050.2,0.42672716]
[1772790131161,2.36736683,2051.1,2050.3,16.071]
[1772790132960,2.36736683,2051.1,2050.3,16.48941221]
[1772790133962,2.36736683,2050.9,2050.1,16.65561775]
[1772790134764,2.36736683,2050.9,2050.2,0.58172637]
[1772790137264,10.35937453,2051.7,2050.2,0.58172637]
[1772790137265,2.36736683,2051.4,2050.2,0.58172637]
[1772790137766,2.36736683,2051.2,2050.2,0.58172637]
[1772790138168,2.36736683,2051.0,2050.3,16.064]
[1772790138467,2.36736683,2051.0,2050.4,0.562535]
[1772790142065,2.36736683,2051.0,2050.2,0.53285671]
[1772790142265,2.36736683,2051.0,2050.3,16.58685671]
[1772790144064,2.36736683,2051.0,2050.3,0.53285671]
[1772790144364,2.36736683,2051.0,2050.4,16.052]